[Event "Late-Titled-Tuesday-Blitz-January-23-2024"]
[Site "Chess.com"]
[Date "2024.01.23"]
[Round "9"]
[White "BogdanDeac"]
[Black "tptagain"]
[Result "1/2-1/2"]
[WhiteElo "3076"]
[BlackElo "2950"]
[TimeControl "180+1"]
[EndTime "15:44:50 PST"]
[Termination "Game drawn - insufficient material"]

1. d4 {[%clk 0:03:00.9]} 1... d5 {[%clk 0:02:59.5]} 2. Nf3 {[%clk 0:02:59.6]}
2... e6 {[%clk 0:02:59.6]} 3. c4 {[%clk 0:02:58.5]} 3... c6 {[%clk 0:02:59.5]}
4. Nbd2 {[%clk 0:02:57.5]} 4... Nf6 {[%clk 0:02:50.3]} 5. g3 {[%clk 0:02:57.5]}
5... Be7 {[%clk 0:02:50.7]} 6. Bg2 {[%clk 0:02:56.9]} 6... O-O {[%clk
0:02:50.5]} 7. Qc2 {[%clk 0:02:48.1]} 7... b6 {[%clk 0:02:40.5]} 8. e4 {[%clk
0:02:48]} 8... Na6 {[%clk 0:02:30.9]} 9. e5 {[%clk 0:02:37.3]} 9... Nd7 {[%clk
0:02:30.2]} 10. a3 {[%clk 0:02:25.1]} 10... Bb7 {[%clk 0:02:24.5]} 11. cxd5
{[%clk 0:02:09.5]} 11... cxd5 {[%clk 0:02:17.2]} 12. O-O {[%clk 0:01:56.8]}
12... Qc7 {[%clk 0:02:09.3]} 13. Qd3 {[%clk 0:01:47.4]} 13... Rac8 {[%clk
0:02:03.2]} 14. Re1 {[%clk 0:01:47.6]} 14... Nab8 {[%clk 0:01:53.2]} 15. Qe3
{[%clk 0:01:30.3]} 15... Ba6 {[%clk 0:01:50.8]} 16. Nb1 {[%clk 0:00:16.2]} 16...
Nc6 {[%clk 0:01:50.6]} 17. b4 {[%clk 0:00:15.3]} 17... Bc4 {[%clk 0:01:41]} 18.
Nbd2 {[%clk 0:00:06]} 18... b5 {[%clk 0:01:38.9]} 19. Nxc4 {[%clk 0:00:06.2]}
19... bxc4 {[%clk 0:01:39.5]} 20. Bd2 {[%clk 0:00:05.8]} 20... Rb8 {[%clk
0:01:27.2]} 21. Rab1 {[%clk 0:00:06.1]} 21... a6 {[%clk 0:01:13.4]} 22. h4
{[%clk 0:00:05.7]} 22... Nb6 {[%clk 0:01:10.5]} 23. h5 {[%clk 0:00:05.6]} 23...
h6 {[%clk 0:01:08.1]} 24. Qc3 {[%clk 0:00:04.9]} 24... Na7 {[%clk 0:01:00.5]}
25. Qc2 {[%clk 0:00:05.1]} 25... Qd7 {[%clk 0:00:59.2]} 26. Bf1 {[%clk
0:00:04.2]} 26... Qa4 {[%clk 0:00:57.9]} 27. Qxa4 {[%clk 0:00:04.5]} 27... Nxa4
{[%clk 0:00:57.9]} 28. Be2 {[%clk 0:00:04.5]} 28... Nb5 {[%clk 0:00:55.6]} 29.
Ra1 {[%clk 0:00:04.7]} 29... Rfc8 {[%clk 0:00:37.7]} 30. Bd1 {[%clk 0:00:04.7]}
30... Nb2 {[%clk 0:00:23.1]} 31. Bc2 {[%clk 0:00:04.5]} 31... Bd8 {[%clk
0:00:15.4]} 32. Bc1 {[%clk 0:00:04.6]} 32... Nd3 {[%clk 0:00:15.3]} 33. Bxd3
{[%clk 0:00:03.9]} 33... cxd3 {[%clk 0:00:16.2]} 34. Rd1 {[%clk 0:00:04.3]}
34... Rc3 {[%clk 0:00:14.7]} 35. a4 {[%clk 0:00:03.9]} 35... Na7 {[%clk
0:00:13.9]} 36. Bd2 {[%clk 0:00:04.2]} 36... Rc4 {[%clk 0:00:09.2]} 37. Rab1
{[%clk 0:00:03.9]} 37... Nc6 {[%clk 0:00:09]} 38. Be3 {[%clk 0:00:03.2]} 38...
Rbxb4 {[%clk 0:00:07.1]} 39. Rxb4 {[%clk 0:00:02.8]} 39... Nxb4 {[%clk 0:00:08]}
40. Bd2 {[%clk 0:00:03]} 40... Nc6 {[%clk 0:00:07.1]} 41. Be3 {[%clk 0:00:03.4]}
41... Rxa4 {[%clk 0:00:07]} 42. Rxd3 {[%clk 0:00:03.7]} 42... a5 {[%clk
0:00:07.2]} 43. Rc3 {[%clk 0:00:03.6]} 43... Rc4 {[%clk 0:00:07.5]} 44. Rb3
{[%clk 0:00:02.8]} 44... Rb4 {[%clk 0:00:05.1]} 45. Ra3 {[%clk 0:00:01.7]} 45...
a4 {[%clk 0:00:05.2]} 46. Kg2 {[%clk 0:00:02]} 46... Kf8 {[%clk 0:00:04.6]} 47.
Rc3 {[%clk 0:00:02.2]} 47... Rc4 {[%clk 0:00:04.8]} 48. Ra3 {[%clk 0:00:02.8]}
48... Be7 {[%clk 0:00:05.1]} 49. Ra1 {[%clk 0:00:02.7]} 49... a3 {[%clk
0:00:05.5]} 50. Nd2 {[%clk 0:00:02.9]} 50... Ra4 {[%clk 0:00:05.5]} 51. Rc1
{[%clk 0:00:03.1]} 51... Ra6 {[%clk 0:00:03.9]} 52. Nb3 {[%clk 0:00:03.2]} 52...
Ke8 {[%clk 0:00:03.8]} 53. Bd2 {[%clk 0:00:03.3]} 53... a2 {[%clk 0:00:03.9]}
54. Bc3 {[%clk 0:00:03.4]} 54... Ra3 {[%clk 0:00:04.2]} 55. Na1 {[%clk
0:00:03.5]} 55... Bb4 {[%clk 0:00:03.3]} 56. Bb2 {[%clk 0:00:02.9]} 56... Ra6
{[%clk 0:00:03.3]} 57. Kf3 {[%clk 0:00:03.3]} 57... Kd7 {[%clk 0:00:03.5]} 58.
Rc2 {[%clk 0:00:02.7]} 58... Ba3 {[%clk 0:00:03.4]} 59. Bc3 {[%clk 0:00:03.1]}
59... Be7 {[%clk 0:00:03.3]} 60. Ke2 {[%clk 0:00:02.8]} 60... Bd8 {[%clk
0:00:03.9]} 61. Kd2 {[%clk 0:00:02.7]} 61... Bb6 {[%clk 0:00:04.4]} 62. Kd3
{[%clk 0:00:02.7]} 62... Ra4 {[%clk 0:00:04.6]} 63. Bd2 {[%clk 0:00:02.1]} 63...
Nxd4 {[%clk 0:00:04.4]} 64. Rb2 {[%clk 0:00:02.1]} 64... Bc5 {[%clk 0:00:04.2]}
65. Be3 {[%clk 0:00:02.5]} 65... Nc6 {[%clk 0:00:03]} 66. Bxc5 {[%clk
0:00:02.4]} 66... Nxe5+ {[%clk 0:00:03.7]} 67. Ke2 {[%clk 0:00:02.8]} 67... Nc4
{[%clk 0:00:04]} 68. Rc2 {[%clk 0:00:03]} 68... e5 {[%clk 0:00:03.9]} 69. Bf8
{[%clk 0:00:03.1]} 69... Ke6 {[%clk 0:00:02.5]} 70. Bxg7 {[%clk 0:00:03.4]}
70... f6 {[%clk 0:00:02.7]} 71. f3 {[%clk 0:00:03.6]} 71... f5 {[%clk
0:00:02.1]} 72. Bxh6 {[%clk 0:00:03.7]} 72... Ra8 {[%clk 0:00:02.1]} 73. Bc1
{[%clk 0:00:03.9]} 73... Kf6 {[%clk 0:00:02.4]} 74. h6 {[%clk 0:00:04.1]} 74...
Kg6 {[%clk 0:00:02.7]} 75. Rc3 {[%clk 0:00:04.4]} 75... Rb8 {[%clk 0:00:02.6]}
76. Rb3 {[%clk 0:00:04.3]} 76... Ra8 {[%clk 0:00:02.5]} 77. Rb5 {[%clk
0:00:03.8]} 77... d4 {[%clk 0:00:02.4]} 78. Rc5 {[%clk 0:00:03.9]} 78... Na3
{[%clk 0:00:02.5]} 79. Rc6+ {[%clk 0:00:03.8]} 79... Kh7 {[%clk 0:00:02.5]} 80.
Rc7+ {[%clk 0:00:04]} 80... Kg6 {[%clk 0:00:03]} 81. Rg7+ {[%clk 0:00:04.3]}
81... Kf6 {[%clk 0:00:03.1]} 82. Bg5+ {[%clk 0:00:04.7]} 82... Ke6 {[%clk
0:00:03.6]} 83. h7 {[%clk 0:00:05.2]} 83... Rh8 {[%clk 0:00:04.1]} 84. g4 {[%clk
0:00:04.9]} 84... Nb1 {[%clk 0:00:03.8]} 85. Ra7 {[%clk 0:00:04.7]} 85... Nc3+
{[%clk 0:00:03.7]} 86. Kd3 {[%clk 0:00:05.3]} 86... e4+ {[%clk 0:00:04.3]} 87.
fxe4 {[%clk 0:00:04.9]} 87... fxe4+ {[%clk 0:00:05.2]} 88. Kc4 {[%clk
0:00:05.4]} 88... e3 {[%clk 0:00:04.9]} 89. Kd3 {[%clk 0:00:05.6]} 89... e2
{[%clk 0:00:05]} 90. Bd2 {[%clk 0:00:05.8]} 90... Kf6 {[%clk 0:00:04.1]} 91. g5+
{[%clk 0:00:05.9]} 91... Kg6 {[%clk 0:00:04.4]} 92. Ra6+ {[%clk 0:00:05.6]}
92... Kxh7 {[%clk 0:00:04.9]} 93. Kxd4 {[%clk 0:00:06.3]} 93... Nb5+ {[%clk
0:00:03.5]} 94. Ke3 {[%clk 0:00:06]} 94... Re8+ {[%clk 0:00:04.1]} 95. Kf2
{[%clk 0:00:06.3]} 95... Nd4 {[%clk 0:00:04.7]} 96. Rxa2 {[%clk 0:00:05.9]}
96... Nb3 {[%clk 0:00:04.2]} 97. Be1 {[%clk 0:00:05.5]} 97... Nc5 {[%clk
0:00:04.3]} 98. Rd2 {[%clk 0:00:04.5]} 98... Ne4+ {[%clk 0:00:04.3]} 99. Kxe2
{[%clk 0:00:04.7]} 99... Nxd2+ {[%clk 0:00:04.9]} 100. Kxd2 {[%clk 0:00:05.6]}
100... Kg6 {[%clk 0:00:05.5]} 101. Bf2 {[%clk 0:00:06.2]} 101... Kxg5 {[%clk
0:00:05.9]} 102. Nc2 {[%clk 0:00:06.8]} 102... Rd8+ {[%clk 0:00:05.9]} 103. Bd4
{[%clk 0:00:06.9]} 103... Rxd4+ {[%clk 0:00:06]} 104. Nxd4 {[%clk 0:00:06.7]}
1/2-1/2

[Event "Late-Titled-Tuesday-Blitz-January-23-2024"]
[Site "Chess.com"]
[Date "2024.01.23"]
[Round "10"]
[White "PapaieDudu"]
[Black "familijatop71"]
[Result "0-1"]
[WhiteElo "2387"]
[BlackElo "2264"]
[TimeControl "180+1"]
[EndTime "15:46:49 PST"]
[Termination "familijatop71 won by resignation"]

1. e4 {[%clk 0:02:53.2]} 1... d5 {[%clk 0:03:00.1]} 2. exd5 {[%clk 0:02:53.6]}
2... Qxd5 {[%clk 0:03:01]} 3. Nc3 {[%clk 0:02:53.2]} 3... Qa5 {[%clk 0:03:01.5]}
4. Nf3 {[%clk 0:02:53.2]} 4... c6 {[%clk 0:03:02]} 5. d4 {[%clk 0:02:53.4]} 5...
Nf6 {[%clk 0:03:02.3]} 6. Bc4 {[%clk 0:02:53.9]} 6... Bf5 {[%clk 0:03:02.2]} 7.
O-O {[%clk 0:02:52.4]} 7... e6 {[%clk 0:03:02.8]} 8. a3 {[%clk 0:02:51.9]} 8...
Bb4 {[%clk 0:03:01.9]} 9. axb4 {[%clk 0:02:49.9]} 9... Qxa1 {[%clk 0:03:01.8]}
10. Bg5 {[%clk 0:02:40.9]} 10... Qxd1 {[%clk 0:02:54.6]} 11. Rxd1 {[%clk
0:02:41.8]} 11... Bxc2 {[%clk 0:02:50.4]} 12. Rd2 {[%clk 0:02:41.1]} 12... Bg6
{[%clk 0:02:49]} 13. b5 {[%clk 0:02:40.7]} 13... Nbd7 {[%clk 0:02:43.5]} 14.
bxc6 {[%clk 0:02:40.4]} 14... bxc6 {[%clk 0:02:43.4]} 15. Ba6 {[%clk 0:02:40.5]}
15... Rb8 {[%clk 0:02:38.3]} 16. Ne5 {[%clk 0:02:38.1]} 16... Nxe5 {[%clk
0:02:33.1]} 17. dxe5 {[%clk 0:02:38.3]} 17... Nd5 {[%clk 0:02:32.4]} 18. Na4
{[%clk 0:02:38.9]} 0-1

[Event "Late-Titled-Tuesday-Blitz-January-23-2024"]
[Site "Chess.com"]
[Date "2024.01.23"]
[Round "10"]
[White "Rodalquilar"]
[Black "Doomfist26"]
[Result "1-0"]
[WhiteElo "2773"]
[BlackElo "2630"]
[TimeControl "180+1"]
[EndTime "15:46:51 PST"]
[Termination "Rodalquilar won by resignation"]

1. d4 {[%clk 0:03:00.9]} 1... Nf6 {[%clk 0:02:58.4]} 2. Nf3 {[%clk 0:03:00.9]}
2... c5 {[%clk 0:02:55.3]} 3. c3 {[%clk 0:03:00.9]} 3... g6 {[%clk 0:02:51.8]}
4. Bf4 {[%clk 0:02:52.8]} 4... Bg7 {[%clk 0:02:44.9]} 5. e3 {[%clk 0:02:53.1]}
5... b6 {[%clk 0:02:44.8]} 6. Nbd2 {[%clk 0:02:52.7]} 6... Bb7 {[%clk
0:02:45.3]} 7. h3 {[%clk 0:02:52.5]} 7... O-O {[%clk 0:02:45.6]} 8. Be2 {[%clk
0:02:53.1]} 8... d6 {[%clk 0:02:42.5]} 9. O-O {[%clk 0:02:53.5]} 9... Ne4 {[%clk
0:02:43]} 10. Nxe4 {[%clk 0:02:49.2]} 10... Bxe4 {[%clk 0:02:43.1]} 11. a4
{[%clk 0:02:49.4]} 11... a6 {[%clk 0:02:42]} 12. Qb3 {[%clk 0:02:48.1]} 12...
Nd7 {[%clk 0:02:41.4]} 13. Bh2 {[%clk 0:02:47.4]} 13... Qc7 {[%clk 0:02:31.9]}
14. Rfd1 {[%clk 0:02:47.2]} 14... Rfb8 {[%clk 0:02:30.8]} 15. Ng5 {[%clk
0:02:38]} 1-0

[Event "Late-Titled-Tuesday-Blitz-January-23-2024"]
[Site "Chess.com"]
[Date "2024.01.23"]
[Round "10"]
[White "thesupera12"]
[Black "rikchessmx"]
[Result "1-0"]
[WhiteElo "2518"]
[BlackElo "2398"]
[TimeControl "180+1"]
[EndTime "15:48:28 PST"]
[Termination "thesupera12 won by resignation"]

1. d4 {[%clk 0:03:00.9]} 1... Nf6 {[%clk 0:03:00.2]} 2. Bg5 {[%clk 0:03:00]}
2... e6 {[%clk 0:03:01.1]} 3. Bxf6 {[%clk 0:02:59.8]} 3... gxf6 {[%clk
0:02:58.8]} 4. Nf3 {[%clk 0:02:51.9]} 4... b6 {[%clk 0:02:58.8]} 5. e3 {[%clk
0:02:52.8]} 5... Bb7 {[%clk 0:02:59.1]} 6. g3 {[%clk 0:02:53.2]} 6... h5 {[%clk
0:02:55.1]} 7. h4 {[%clk 0:02:52.2]} 7... Nc6 {[%clk 0:02:48.5]} 8. Bg2 {[%clk
0:02:51.6]} 8... Bd6 {[%clk 0:02:46.5]} 9. O-O {[%clk 0:02:50.5]} 9... Qe7
{[%clk 0:02:46.3]} 10. c4 {[%clk 0:02:50.4]} 10... f5 {[%clk 0:02:40.1]} 11. Nc3
{[%clk 0:02:49.9]} 11... a6 {[%clk 0:02:39.2]} 12. d5 {[%clk 0:02:49.5]} 12...
Ne5 {[%clk 0:02:34.8]} 13. Nxe5 {[%clk 0:02:47.8]} 13... Bxe5 {[%clk 0:02:34.4]}
14. dxe6 {[%clk 0:02:48]} 14... Bxg2 {[%clk 0:02:33.7]} 15. Qxd7+ {[%clk
0:02:47]} 15... Qxd7 {[%clk 0:02:33]} 16. exd7+ {[%clk 0:02:47.9]} 16... Kxd7
{[%clk 0:02:32.6]} 17. Kxg2 {[%clk 0:02:47.6]} 17... Bxc3 {[%clk 0:02:32.7]} 18.
bxc3 {[%clk 0:02:47.6]} 18... Kc6 {[%clk 0:02:32.7]} 19. Rad1 {[%clk 0:02:47.9]}
19... Rad8 {[%clk 0:02:32.5]} 20. Kf3 {[%clk 0:02:48.5]} 20... Kc5 {[%clk
0:02:31.7]} 21. Rd4 {[%clk 0:02:47.9]} 21... Rxd4 {[%clk 0:02:30.1]} 22. cxd4+
{[%clk 0:02:48.8]} 22... Kxc4 {[%clk 0:02:26.7]} 23. Rc1+ {[%clk 0:02:48.8]}
23... Kb4 {[%clk 0:02:26.1]} 24. Rxc7 {[%clk 0:02:49.7]} 24... b5 {[%clk
0:02:22.3]} 25. Rxf7 {[%clk 0:02:49.3]} 25... Rc8 {[%clk 0:02:21.8]} 26. Rxf5
{[%clk 0:02:49]} 26... Rc2 {[%clk 0:02:22.4]} 27. d5 {[%clk 0:02:48.4]} 27...
Rxa2 {[%clk 0:02:22.3]} 28. Rf4+ {[%clk 0:02:44.4]} 28... Kc5 {[%clk 0:02:21.3]}
29. Rd4 {[%clk 0:02:45]} 29... Kd6 {[%clk 0:02:21.3]} 30. e4 {[%clk 0:02:43.3]}
30... Ra4 {[%clk 0:02:10.8]} 31. Ke3 {[%clk 0:02:38]} 31... Ra3+ {[%clk
0:02:07.7]} 32. Kf4 {[%clk 0:02:36.3]} 32... a5 {[%clk 0:02:03.6]} 33. e5+
{[%clk 0:02:35.7]} 33... Kc5 {[%clk 0:02:03.6]} 34. d6 {[%clk 0:02:32.7]} 34...
Kxd4 {[%clk 0:02:01.2]} 35. d7 {[%clk 0:02:32.9]} 35... Ra4 {[%clk 0:01:58.3]}
36. d8=Q+ {[%clk 0:02:31.7]} 36... Kc3+ {[%clk 0:01:58.6]} 37. Ke3 {[%clk
0:02:27.2]} 37... Rc4 {[%clk 0:01:51.6]} 38. e6 {[%clk 0:02:25.8]} 38... a4
{[%clk 0:01:51.6]} 39. e7 {[%clk 0:02:25.9]} 1-0

[Event "Late-Titled-Tuesday-Blitz-January-23-2024"]
[Site "Chess.com"]
[Date "2024.01.23"]
[Round "10"]
[White "chessflav"]
[Black "Knjazj"]
[Result "1-0"]
[WhiteElo "2296"]
[BlackElo "2040"]
[TimeControl "180+1"]
[EndTime "15:49:26 PST"]
[Termination "chessflav won by checkmate"]

1. e4 {[%clk 0:02:59.3]} 1... d6 {[%clk 0:02:13]} 2. Nc3 {[%clk 0:02:57.7]} 2...
e5 {[%clk 0:02:12.8]} 3. Bc4 {[%clk 0:02:56.9]} 3... Be6 {[%clk 0:02:11.5]} 4.
Qe2 {[%clk 0:02:53.9]} 4... Nf6 {[%clk 0:02:09.3]} 5. Nf3 {[%clk 0:02:52.8]}
5... h6 {[%clk 0:02:06.2]} 6. O-O {[%clk 0:02:50.1]} 6... Nc6 {[%clk 0:02:05.3]}
7. Nd5 {[%clk 0:02:48.5]} 7... Be7 {[%clk 0:02:01.3]} 8. c3 {[%clk 0:02:48.6]}
8... O-O {[%clk 0:01:59.7]} 9. d4 {[%clk 0:02:46.7]} 9... Bg4 {[%clk 0:01:43.5]}
10. h3 {[%clk 0:02:43.9]} 10... Nxd5 {[%clk 0:01:39.2]} 11. exd5 {[%clk
0:02:39.4]} 11... Bxf3 {[%clk 0:01:38.6]} 12. Qxf3 {[%clk 0:02:38.4]} 12... Na5
{[%clk 0:01:37.8]} 13. Bd3 {[%clk 0:02:32.2]} 13... b6 {[%clk 0:01:27.7]} 14.
dxe5 {[%clk 0:02:03.5]} 14... dxe5 {[%clk 0:01:27]} 15. Qe4 {[%clk 0:02:03.7]}
15... f5 {[%clk 0:01:16.2]} 16. Qxe5 {[%clk 0:02:03.3]} 16... Bd6 {[%clk
0:01:08.9]} 17. Qe6+ {[%clk 0:02:02.9]} 17... Kh8 {[%clk 0:01:08.1]} 18. Bxf5
{[%clk 0:01:59.5]} 18... Qh4 {[%clk 0:01:01]} 19. Qg6 {[%clk 0:01:56.9]} 19...
Kg8 {[%clk 0:00:52.5]} 20. Qh7+ {[%clk 0:01:52]} 20... Kf7 {[%clk 0:00:51.9]}
21. Be6+ {[%clk 0:01:52.9]} 21... Ke7 {[%clk 0:00:50.7]} 22. Qxg7+ {[%clk
0:01:51.2]} 22... Ke8 {[%clk 0:00:50.9]} 23. Qd7# {[%clk 0:01:51.1]} 1-0

[Event "Late-Titled-Tuesday-Blitz-January-23-2024"]
[Site "Chess.com"]
[Date "2024.01.23"]
[Round "10"]
[White "Firouzja2003"]
[Black "GHANDEEVAM2003"]
[Result "1-0"]
[WhiteElo "3157"]
[BlackElo "3069"]
[TimeControl "180+1"]
[EndTime "15:49:36 PST"]
[Termination "Firouzja2003 won by resignation"]

1. Nf3 {[%clk 0:03:00.9]} 1... d6 {[%clk 0:02:58.8]} 2. d4 {[%clk 0:02:58.7]}
2... g6 {[%clk 0:02:59]} 3. e4 {[%clk 0:02:58.6]} 3... Bg7 {[%clk 0:02:59.6]} 4.
Bc4 {[%clk 0:02:57.5]} 4... Nc6 {[%clk 0:02:58.4]} 5. O-O {[%clk 0:02:56]} 5...
Nf6 {[%clk 0:02:56.1]} 6. d5 {[%clk 0:02:52]} 6... Nb8 {[%clk 0:02:53.5]} 7. Nc3
{[%clk 0:02:51.8]} 7... O-O {[%clk 0:02:52.1]} 8. a4 {[%clk 0:02:51.5]} 8... a5
{[%clk 0:02:51.1]} 9. Re1 {[%clk 0:02:48.8]} 9... Na6 {[%clk 0:02:47.5]} 10. e5
{[%clk 0:02:39.7]} 10... dxe5 {[%clk 0:02:48.4]} 11. Nxe5 {[%clk 0:02:39.9]}
11... Nb4 {[%clk 0:02:48.6]} 12. Bg5 {[%clk 0:02:37.1]} 12... Bf5 {[%clk
0:02:47.9]} 13. Bb3 {[%clk 0:02:37.2]} 13... h6 {[%clk 0:02:40.2]} 14. Bh4
{[%clk 0:02:36.4]} 14... Re8 {[%clk 0:02:29.7]} 15. d6 {[%clk 0:02:24.5]} 15...
e6 {[%clk 0:02:20.8]} 16. d7 {[%clk 0:02:05]} 16... Re7 {[%clk 0:02:19.7]} 17.
g4 {[%clk 0:02:03.2]} 17... g5 {[%clk 0:02:19.8]} 18. gxf5 {[%clk 0:02:02.4]}
18... gxh4 {[%clk 0:02:20.5]} 19. fxe6 {[%clk 0:02:02.7]} 19... fxe6 {[%clk
0:02:21.2]} 20. Ng6 {[%clk 0:02:02.9]} 20... Rxd7 {[%clk 0:02:16.9]} 21. Bxe6+
{[%clk 0:02:02.7]} 21... Kh7 {[%clk 0:02:17.5]} 22. Bxd7 {[%clk 0:02:01.9]}
22... Nxd7 {[%clk 0:02:18.2]} 23. Re7 {[%clk 0:01:50.8]} 23... Ra6 {[%clk
0:02:10.1]} 24. Qxd7 {[%clk 0:01:40.9]} 24... Rxg6+ {[%clk 0:02:09.8]} 25. Kh1
{[%clk 0:01:40.9]} 25... Qf8 {[%clk 0:01:27.3]} 26. Rf7 {[%clk 0:01:41.1]} 26...
Qc5 {[%clk 0:01:27.8]} 27. Rg1 {[%clk 0:01:37.4]} 27... Rxg1+ {[%clk 0:01:24.3]}
28. Kxg1 {[%clk 0:01:38.3]} 28... Qg5+ {[%clk 0:01:24.9]} 29. Kf1 {[%clk
0:01:38.2]} 29... Kg6 {[%clk 0:01:20.1]} 30. Rxg7+ {[%clk 0:01:36.5]} 1-0

[Event "Late-Titled-Tuesday-Blitz-January-23-2024"]
[Site "Chess.com"]
[Date "2024.01.23"]
[Round "10"]
[White "angelgab3"]
[Black "j_coca"]
[Result "1-0"]
[WhiteElo "2695"]
[BlackElo "2522"]
[TimeControl "180+1"]
[EndTime "15:50:22 PST"]
[Termination "angelgab3 won by resignation"]

1. e4 {[%clk 0:03:00.9]} 1... g6 {[%clk 0:02:55.4]} 2. d4 {[%clk 0:03:00.9]}
2... Bg7 {[%clk 0:02:46.3]} 3. Nf3 {[%clk 0:03:01]} 3... d6 {[%clk 0:02:46]} 4.
Bc4 {[%clk 0:03:01.7]} 4... Nh6 {[%clk 0:02:45.5]} 5. h3 {[%clk 0:02:59.5]} 5...
O-O {[%clk 0:02:45.4]} 6. Qe2 {[%clk 0:02:59.7]} 6... Kh8 {[%clk 0:02:45.8]} 7.
O-O {[%clk 0:02:57.9]} 7... Nc6 {[%clk 0:02:46.1]} 8. c3 {[%clk 0:02:57.5]} 8...
e5 {[%clk 0:02:46.4]} 9. dxe5 {[%clk 0:02:52.6]} 9... Nxe5 {[%clk 0:02:46.1]}
10. Nxe5 {[%clk 0:02:52.8]} 10... dxe5 {[%clk 0:02:47]} 11. Be3 {[%clk
0:02:51.4]} 11... Qe7 {[%clk 0:02:45.4]} 12. Nd2 {[%clk 0:02:43.6]} 12... f5
{[%clk 0:02:45.7]} 13. Nb3 {[%clk 0:02:42.7]} 13... b6 {[%clk 0:02:44.6]} 14.
exf5 {[%clk 0:02:20.5]} 14... gxf5 {[%clk 0:02:39.1]} 15. Rfe1 {[%clk
0:02:14.4]} 15... f4 {[%clk 0:02:37.4]} 16. Bd4 {[%clk 0:02:09.8]} 16... f3
{[%clk 0:02:31.9]} 17. Qe4 {[%clk 0:02:08.5]} 17... Qg5 {[%clk 0:02:29.6]} 18.
g3 {[%clk 0:02:06.9]} 18... exd4 {[%clk 0:02:28.6]} 19. Qxa8 {[%clk 0:02:03.5]}
19... Bxh3 {[%clk 0:02:25]} 20. Qd5 {[%clk 0:02:03.6]} 20... Qg6 {[%clk
0:02:19.5]} 21. Nxd4 {[%clk 0:01:46.4]} 21... Bg2 {[%clk 0:02:17.5]} 22. Ne6
{[%clk 0:01:43.5]} 22... Rc8 {[%clk 0:01:58.9]} 23. Nf4 {[%clk 0:01:35.6]} 23...
Qg4 {[%clk 0:01:56.3]} 24. Nxg2 {[%clk 0:01:29.4]} 24... fxg2 {[%clk 0:01:55.7]}
25. Qe6 {[%clk 0:01:22.3]} 25... Rf8 {[%clk 0:01:53.6]} 26. Qxg4 {[%clk
0:01:14.9]} 26... Nxg4 {[%clk 0:01:54.5]} 27. Re2 {[%clk 0:01:14.7]} 27... h5
{[%clk 0:01:48.5]} 28. Kxg2 {[%clk 0:01:12.7]} 28... h4 {[%clk 0:01:45.2]} 29.
Rh1 {[%clk 0:01:13.3]} 29... Bf6 {[%clk 0:01:45.6]} 30. Be6 {[%clk 0:01:09.9]}
30... Nh6 {[%clk 0:01:42.3]} 31. f4 {[%clk 0:01:01.3]} 31... Kg7 {[%clk
0:01:41.9]} 32. g4 {[%clk 0:01:00.4]} 32... Bd8 {[%clk 0:01:42]} 33. g5 {[%clk
0:00:59.7]} 33... Nf5 {[%clk 0:01:42]} 34. Bxf5 {[%clk 0:00:58]} 34... Rxf5
{[%clk 0:01:42.9]} 35. Rxh4 {[%clk 0:00:57.9]} 35... c5 {[%clk 0:01:42.8]} 36.
Kg3 {[%clk 0:00:55.6]} 36... Rd5 {[%clk 0:01:42.9]} 37. Kg4 {[%clk 0:00:52.9]}
37... Rd1 {[%clk 0:01:40.3]} 38. Reh2 {[%clk 0:00:52.5]} 38... Be7 {[%clk
0:01:35.7]} 39. Rh7+ {[%clk 0:00:51.8]} 39... Kf8 {[%clk 0:01:36.3]} 40. Rh8+
{[%clk 0:00:52.4]} 40... Kf7 {[%clk 0:01:36.7]} 41. R2h7+ {[%clk 0:00:53.1]}
41... Ke6 {[%clk 0:01:37.4]} 42. Re8 {[%clk 0:00:50.9]} 1-0

[Event "Late-Titled-Tuesday-Blitz-January-23-2024"]
[Site "Chess.com"]
[Date "2024.01.23"]
[Round "10"]
[White "ChessSwole"]
[Black "DvaHrasta"]
[Result "0-1"]
[WhiteElo "2608"]
[BlackElo "2511"]
[TimeControl "180+1"]
[EndTime "15:50:23 PST"]
[Termination "DvaHrasta won by resignation"]

1. e4 {[%clk 0:03:00.9]} 1... c6 {[%clk 0:02:59.1]} 2. d4 {[%clk 0:03:01.1]}
2... d5 {[%clk 0:02:59.7]} 3. e5 {[%clk 0:03:01.8]} 3... c5 {[%clk 0:02:59.9]}
4. dxc5 {[%clk 0:02:59.9]} 4... e6 {[%clk 0:03:00]} 5. a3 {[%clk 0:02:59.5]}
5... Bxc5 {[%clk 0:02:59.7]} 6. Qg4 {[%clk 0:03:00]} 6... Ne7 {[%clk 0:02:58.8]}
7. Nf3 {[%clk 0:02:58.3]} 7... Nf5 {[%clk 0:02:55.1]} 8. Bd3 {[%clk 0:02:52.9]}
8... h5 {[%clk 0:02:52.5]} 9. Qf4 {[%clk 0:02:52.9]} 9... Nc6 {[%clk 0:02:44.4]}
10. O-O {[%clk 0:02:49.2]} 10... a5 {[%clk 0:02:43.5]} 11. Nc3 {[%clk
0:02:46.7]} 11... Nce7 {[%clk 0:02:36.6]} 12. Nb5 {[%clk 0:02:32.3]} 12... Ng6
{[%clk 0:02:28.5]} 13. Qd2 {[%clk 0:02:30.9]} 13... h4 {[%clk 0:02:20.4]} 14.
Bxf5 {[%clk 0:02:29.9]} 14... exf5 {[%clk 0:02:19.3]} 15. Qxd5 {[%clk
0:02:25.3]} 15... Qxd5 {[%clk 0:02:07.4]} 16. Nc7+ {[%clk 0:02:25.5]} 16... Kf8
{[%clk 0:02:06.2]} 17. Nxd5 {[%clk 0:02:26.4]} 17... h3 {[%clk 0:02:02.6]} 18.
g3 {[%clk 0:02:16.6]} 18... b6 {[%clk 0:02:02.2]} 19. Be3 {[%clk 0:02:14.1]}
19... Bb7 {[%clk 0:01:55.1]} 20. Rfd1 {[%clk 0:02:01.5]} 20... Bxe3 {[%clk
0:01:52.7]} 21. fxe3 {[%clk 0:02:02.4]} 21... Rd8 {[%clk 0:01:45.8]} 22. c4
{[%clk 0:01:55.6]} 22... b5 {[%clk 0:01:44.9]} 23. b3 {[%clk 0:01:51.7]} 23...
a4 {[%clk 0:01:45.1]} 24. Nd4 {[%clk 0:01:43.8]} 24... axb3 {[%clk 0:01:36.5]}
25. Nxb5 {[%clk 0:01:43.5]} 25... Nxe5 {[%clk 0:01:34.3]} 26. Nb6 {[%clk
0:01:32.5]} 26... Rxd1+ {[%clk 0:01:28.2]} 27. Rxd1 {[%clk 0:01:33.4]} 27... Ke7
{[%clk 0:01:25.1]} 28. Nd5+ {[%clk 0:01:29.1]} 28... Bxd5 {[%clk 0:01:21.5]} 29.
cxd5 {[%clk 0:01:30]} 29... Nf3+ {[%clk 0:01:16.4]} 30. Kh1 {[%clk 0:01:15.6]}
30... Rc8 {[%clk 0:01:14.8]} 31. Nd4 {[%clk 0:01:00.1]} 31... Nxd4 {[%clk
0:01:13.4]} 32. exd4 {[%clk 0:01:01]} 32... b2 {[%clk 0:01:13.2]} 33. Kg1 {[%clk
0:00:56.2]} 33... Rc1 {[%clk 0:01:12.6]} 0-1